bitfinex-derivatives/quotes_ETHF0:USTF0_20250911
["timestamp","ask_amount","ask_price","bid_price","bid_amount"]
[1757613648389,0.9434,4434.6,4434.5,1.14316747]
[1757613649585,0.9434,4434.6,4434.5,0.82346747]
[1757613650489,0.9434,4434.6,4434.5,1.02266747]
[1757613650792,0.9434,4434.6,4434.5,1.14316747]
[1757613651787,0.4392,4434.6,4434.5,1.14316747]
[1757613653479,0.9434,4434.6,4434.5,1.14316747]
[1757613657290,0.9434,4434.6,4434.5,1.14341967]
[1757613657592,0.9434,4434.6,4434.5,0.82371967]
[1757613657789,0.9434,4434.6,4434.5,0.29641967]
[1757613658094,1.4779594,4434.6,4434.5,0.29641967]
[1757613658492,1.4779594,4434.6,4434.2,0.2963]
[1757613658493,1.4779594,4434.6,4434.1,0.2963]
[1757613658692,3.5309,4434.2,4434.1,0.4983]
[1757613658995,4.1636,4434.2,4434.1,0.4983]
[1757613661793,4.1636,4434.2,4433.8,0.2963]
[1757613662098,4.1636,4434.2,4433.6,0.2963]
[1757613663391,3.9356,4433.7,4433.6,0.2963]
[1757613663596,4.1636,4433.7,4433.6,0.2963]
[1757613663794,4.1636,4433.7,4433.0,0.1232]
[1757613664003,4.1636,4433.7,4433.1,0.2963]
[1757613664690,4.1636,4433.7,4433.6,0.4983]
[1757613667099,4.1636,4433.7,4433.6,0.7011]
[1757613667492,4.1636,4433.7,4433.6,0.4983]
[1757613668693,4.1636,4433.7,4433.1,0.2963]
[1757613669390,3.9356,4433.7,4433.6,0.7011]
[1757613669697,3.4358,4433.7,4433.6,0.7011]
[1757613671791,3.2078,4434.2,4434.1,0.7011]
[1757613671995,3.4358,4434.2,4434.1,0.7011]
[1757613672795,3.6446,4434.2,4434.1,0.7011]
[1757613673802,4.1636,4434.2,4434.1,0.4983]
[1757613673994,3.8405,4434.2,4433.7,0.2963]
[1757613674196,0.3231,4434.0,4433.7,0.7011]
[1757613674502,0.228,4433.9,4433.8,0.2963]
[1757613674701,0.228,4433.9,4433.8,0.7011]
[1757613675002,3.2078,4434.2,4433.8,4.7011]
[1757613675203,3.2078,4434.2,4433.6,3.2078]
[1757613675204,3.2078,4434.2,4434.1,0.4048]
[1757613675402,3.4358,4434.2,4434.1,0.7011]
[1757613676606,4.1636,4434.2,4434.1,0.7011]
[1757613678301,3.9356,4434.2,4434.1,0.7011]
[1757613678500,4.1626,4434.2,4434.1,0.7011]
[1757613678804,3.8395,4434.2,4434.1,0.7011]
[1757613679006,3.4348,4434.2,4434.1,0.7011]
[1757613680407,3.4166,4434.7,4434.6,0.7011]
[1757613680594,3.6436,4434.7,4434.6,0.7011]
[1757613681298,4.1626,4434.7,4434.6,0.7011]
[1757613682802,3.8395,4434.7,4434.6,0.7011]
[1757613682997,4.1626,4434.7,4434.6,0.7011]
[1757613685003,4.1626,4434.7,4434.6,0.2963]
[1757613686711,4.1626,4434.7,4434.6,0.4983]
[1757613687901,4.1626,4434.7,4434.6,0.7011]
[1757613688107,4.1459,4434.7,4434.6,0.7011]
[1757613688717,4.1459,4434.7,4434.6,0.98298772]
[1757613691815,3.8395,4434.7,4434.6,0.98298772]
[1757613693216,3.6125,4434.7,4434.6,0.98298772]
[1757613693412,3.9276,4435.2,4435.1,0.4175]
[1757613693614,3.2078,4435.2,4435.1,1.00768772]
[1757613693913,0.9468,4435.2,4435.1,0.69938772]
[1757613694512,0.9468,4435.2,4435.1,1.00768772]
[1757613695815,0.9468,4435.2,4435.1,0.28188772]
[1757613697516,0.3689,4435.2,4434.6,3.6253]
[1757613697817,0.4134,4434.8,4434.7,0.7258]
[1757613698018,0.6404,4434.8,4434.7,0.7258]
[1757613698908,0.7823,4434.8,4434.7,0.3083]
[1757613699513,0.7823,4434.8,4434.7,0.5135]
[1757613700506,0.7823,4434.8,4434.7,0.3083]
[1757613700710,3.9901,4434.8,4434.7,0.3083]
[1757613701110,0.4134,4434.3,4434.1,3.2078]
[1757613701318,0.4134,4434.3,4434.2,41.5258]
[1757613701921,0.227,4434.5,4434.3,0.3083]
[1757613702121,0.4372,4434.5,4434.4,0.7258]
[1757613705614,0.6404,4434.5,4434.4,0.7258]
[1757613705926,0.227,4434.5,4434.4,0.7258]
[1757613706817,0.4372,4434.5,4434.4,0.7258]
[1757613707523,0.7823,4434.5,4434.4,0.3083]
[1757613707820,0.4372,4434.5,4434.4,0.7258]
[1757613708120,0.6404,4434.5,4434.4,0.7258]
[1757613708517,0.7823,4434.5,4434.4,0.7258]
[1757613708715,0.7823,4434.5,4434.4,0.5135]
[1757613709115,0.6404,4434.5,4434.4,0.5135]
[1757613709318,0.6404,4434.5,4434.4,0.79634409]
[1757613709525,0.4372,4434.5,4434.4,1.00864409]
[1757613709728,0.227,4434.5,4434.4,1.00864409]
[1757613711222,3.2078,4434.8,4434.5,0.1289]
[1757613711414,3.418,4434.8,4434.7,0.7258]
[1757613711620,3.418,4434.8,4434.7,1.00864409]
[1757613713029,0.2102,4434.8,4434.7,1.00864409]
[1757613713627,0.4134,4434.8,4434.7,1.00864409]
[1757613713832,0.227,4434.9,4434.8,0.7258]
[1757613714132,0.227,4434.9,4434.8,1.00864409]
[1757613714321,0.227,4434.9,4434.8,5.23413409]
[1757613714635,3.2078,4435.8,4435.7,0.3083]
[1757613714825,3.4348,4435.8,4435.7,1.00864409]
[1757613715339,3.645,4435.8,4435.7,1.00864409]
[1757613715734,8.21644,4435.8,4435.7,0.28284409]
[1757613716037,8.75875667,4435.8,4435.7,0.28284409]
[1757613716241,8.75875667,4435.8,4435.7,0.59114409]
[1757613716242,8.21644,4435.8,4435.7,0.59114409]
[1757613716834,7.991,4435.8,4435.7,0.59114409]
[1757613717541,3.991,4435.8,4435.7,0.28284409]
[1757613717742,3.991,4435.8,4435.7,0.58204409]
[1757613718541,3.991,4435.8,4435.7,0.79154409]
[1757613718744,3.8482,4435.8,4435.7,0.79154409]
[1757613720137,3.9907,4435.8,4435.5,0.1289]
[1757613720439,0.1425,4435.7,4435.6,0.28279356]
[1757613720640,0.1425,4435.7,4435.6,0.58199356]
[1757613720641,0.55,4435.7,4435.6,0.58199356]
[1757613721140,0.55,4435.7,4435.6,0.28279356]
[1757613721642,0.55,4435.7,4435.6,0.58529724]
[1757613721839,4.63295,4435.7,4434.9,0.2992]
[1757613722041,3.2078,4435.0,4434.9,0.2992]
[1757613722241,3.4348,4435.0,4434.9,0.2992]
[1757613722440,3.4348,4435.0,4434.9,0.5087]
[1757613722646,3.4348,4435.0,4434.9,0.2992]
[1757613723241,3.4348,4435.0,4434.9,0.5087]
[1757613723642,3.4348,4435.0,4434.9,0.2992]
[1757613723849,3.4348,4435.0,4434.9,0.5087]
[1757613725650,3.4348,4435.0,4434.9,0.7132]
[1757613728043,3.4348,4435.0,4434.9,0.2992]
[1757613728636,3.4348,4435.0,4434.9,0.5087]
[1757613729036,3.4348,4435.0,4434.9,0.7132]
[1757613734042,3.4348,4435.0,4434.9,0.9951598]
[1757613735150,0.227,4435.0,4434.9,0.9951598]
[1757613736642,0.227,4435.0,4434.9,0.5811598]
[1757613737144,0.227,4435.0,4434.9,0.7906598]
[1757613737346,0.227,4435.0,4434.9,0.9951598]
[1757613737743,0.227,4435.0,4434.9,0.7906598]
[1757613737949,0.227,4435.0,4434.9,0.9951598]
[1757613738349,0.227,4435.0,4434.9,0.2819598]
[1757613738550,0.76958494,4435.0,4434.9,0.2819598]
[1757613738747,0.76958494,4435.0,4434.9,0.5811598]
[1757613739747,0.76958494,4435.0,4434.9,0.7906598]
[1757613741758,0.76958494,4435.0,4434.9,0.9951598]
[1757613743046,0.76958494,4435.0,4434.9,0.7906598]
[1757613743454,0.76958494,4435.0,4434.9,0.9951598]
[1757613744248,0.76958494,4435.0,4434.9,0.5811598]
[1757613744548,0.76958494,4435.0,4434.9,0.7906598]
[1757613745357,0.76958494,4435.0,4434.9,0.9951598]
[1757613745555,0.227,4435.0,4434.9,0.9951598]
[1757613748360,0.227,4435.0,4434.9,0.5811598]
[1757613748659,0.227,4435.0,4434.9,0.7964598]
[1757613750147,0.227,4435.0,4434.9,1.0096598]
[1757613764468,0.76868107,4435.0,4434.9,1.0096598]
[1757613770864,0.12238107,4435.0,4434.9,1.0096598]
[1757613779276,3.2078,4435.7,4435.1,0.7169]
[1757613779472,0.227,4435.4,4435.3,0.7169]
[1757613779675,0.227,4435.4,4435.3,0.9988598]
[1757613781170,0.4301,4435.4,4435.3,0.9988598]
[1757613781475,0.9394,4435.4,4435.3,0.9988598]
[1757613782179,0.4301,4435.4,4435.3,0.9988598]
[1757613782768,0.96922689,4435.4,4435.3,0.9988598]
[1757613783270,1.27732689,4435.4,4435.3,0.9988598]
[1757613783674,0.76612689,4435.4,4435.3,0.9988598]
[1757613785373,0.227,4435.4,4435.3,0.9988598]
[1757613785682,3.2078,4435.7,4435.3,0.9988598]
[1757613785974,0.227,4435.6,4435.5,0.8341]
[1757613786179,0.227,4435.6,4435.5,1.1160598]
[1757613786972,0.7382,4435.6,4435.5,1.1160598]
[1757613787274,0.5112,4435.6,4435.5,1.1160598]
[1757613787471,0.227,4435.6,4435.5,1.1160598]
[1757613789478,0.4301,4435.6,4435.5,1.1160598]
[1757613789679,0.7382,4435.6,4435.5,1.1160598]
[1757613790177,0.7382,4435.6,4435.5,0.8341]
[1757613790675,0.9394,4435.6,4435.5,0.8341]
[1757613794079,0.9394,4435.6,4435.5,1.11833844]
[1757613795382,0.9394,4435.6,4435.5,1.00113844]
[1757613795589,0.9394,4435.6,4435.5,0.28423844]
[1757613797787,0.9394,4435.6,4435.5,0.58913844]
[1757613798087,0.9394,4435.6,4435.5,0.80183844]
[1757613802786,3.2078,4435.7,4435.5,0.80183844]
[1757613802787,3.2078,4435.7,4435.5,0.81343844]
[1757613802980,3.2078,4435.7,4435.6,1.00113844]
[1757613803181,3.4348,4435.7,4435.6,1.00113844]
[1757613803487,3.6379,4435.7,4435.6,1.00113844]
[1757613803685,4.1472,4435.7,4435.6,0.28423844]
[1757613803880,4.68594935,4435.7,4435.6,0.28423844]
[1757613805186,4.68594935,4435.7,4435.6,0.58913844]
[1757613806081,4.68594935,4435.7,4435.6,0.28423844]
[1757613807178,4.68594935,4435.7,4435.6,0.58913844]
[1757613808787,4.68594935,4435.7,4435.6,0.28423844]
[1757613808991,4.68594935,4435.7,4434.7,0.3195]
[1757613808992,0.4128,4434.8,4434.7,0.3195]
[1757613809190,0.8589,4434.8,4434.7,0.3195]
[1757613810985,0.8589,4434.8,4434.7,0.5307]
[1757613811696,0.6398,4434.8,4434.7,0.5307]
[1757613811992,0.6398,4434.8,4434.7,0.7272]
[1757613816097,0.8589,4434.8,4434.7,0.7272]
[1757613816797,0.6398,4434.8,4434.7,0.7272]
[1757613818801,0.8589,4434.8,4434.7,0.7272]
[1757613819494,0.8589,4434.8,4434.7,0.5307]
[1757613820993,0.6398,4434.8,4434.7,1.0069914]
[1757613821194,0.8589,4434.8,4434.7,1.0069914]
[1757613821798,0.6398,4434.8,4434.7,1.0069914]
[1757613822196,0.227,4434.8,4434.7,1.0069914]
[1757613822399,0.4269,4434.8,4434.7,1.0069914]
[1757613824207,0.227,4434.8,4434.7,1.0069914]
[1757613824802,0.6398,4434.8,4434.7,1.0069914]
[1757613825006,0.8589,4434.8,4434.7,1.0069914]
[1757613825206,0.6398,4434.8,4434.7,1.0069914]
[1757613825704,1.18502544,4434.8,4434.7,1.0069914]
[1757613825905,0.97212544,4434.8,4434.7,1.0069914]
[1757613827401,1.18502544,4434.8,4434.7,1.0069914]
[1757613827607,1.40412544,4434.8,4434.7,1.0069914]
[1757613829195,1.40412544,4434.8,4434.7,0.5992914]
[1757613829403,1.40412544,4434.8,4434.7,0.8104914]
[1757613830301,1.18502544,4434.8,4434.7,1.0069914]
[1757613830701,0.97212544,4434.8,4434.7,1.0069914]
[1757613834713,1.18502544,4434.8,4434.7,1.0069914]
[1757613835518,0.6398,4434.8,4434.7,1.0069914]
[1757613837019,0.4269,4434.8,4434.7,1.0069914]
[1757613837218,0.227,4434.8,4434.7,1.0069914]
[1757613838222,0.77361527,4434.8,4434.7,1.0069914]
[1757613839322,3.2078,4435.5,4434.7,1.2324814]
[1757613839516,0.227,4435.4,4435.3,0.4136]
[1757613839819,0.227,4435.4,4435.3,0.9870914]
[1757613840323,3.2078,4436.0,4435.5,0.1214]
[1757613840517,3.6336,4436.0,4435.9,0.7073]
[1757613840719,3.6336,4436.0,4435.9,0.9870914]
[1757613842719,3.8415,4436.0,4435.9,0.9870914]
[1757613843127,4.0606,4436.0,4435.9,0.5734914]
[1757613844111,4.0606,4436.0,4435.9,0.7827914]
[1757613847427,4.0606,4436.0,4435.9,0.503]
[1757613849421,3.8415,4436.0,4435.9,0.503]
[1757613849622,4.0606,4436.0,4435.9,0.503]
[1757613849828,4.0606,4436.0,4435.9,0.2937]
[1757613850226,4.0606,4436.0,4435.9,0.503]
[1757613850530,3.8415,4436.0,4435.9,0.7073]
[1757613850730,4.0606,4436.0,4435.9,0.7073]
[1757613851235,3.4066,4436.5,4436.4,0.4136]
[1757613851423,0.96847327,4436.5,4436.4,0.7073]
[1757613852630,0.4258,4436.5,4436.4,0.7073]
[1757613855127,0.4258,4436.5,4436.0,0.1214]
[1757613855128,0.4067,4436.2,4436.1,0.503]
[1757613855326,0.6337,4436.2,4436.1,0.503]
[1757613855521,0.6337,4436.2,4436.1,0.7073]
[1757613860438,0.4258,4436.2,4436.1,0.7073]
[1757613860731,3.2078,4437.1,4436.2,0.2937]
[1757613860933,3.4066,4437.1,4437.0,0.8287]
[1757613861127,3.6336,4437.1,4437.0,0.8287]
[1757613861535,3.2078,4437.1,4437.0,0.8287]
[1757613861741,3.4066,4438.2,4438.1,0.7073]
[1757613861930,4.3841727,4438.2,4438.1,0.7073]
[1757613862233,3.7504727,4438.2,4438.1,0.7073]
[1757613862435,3.3778,4438.9,4438.8,0.7073]
[1757613862639,3.6048,4438.9,4438.8,0.7073]
[1757613863731,4.0115,4438.9,4438.8,0.7073]
[1757613864342,4.0115,4438.9,4438.6,40.8]
[1757613864343,0.6244,4438.7,4438.6,0.2937]
[1757613864527,0.8514,4438.7,4438.6,0.2937]
[1757613864839,0.227,4438.7,4438.6,0.7073]
[1757613865142,3.3778,4438.9,4438.8,0.4136]
[1757613865340,3.6048,4438.9,4438.8,0.7073]
[1757613866241,3.8036,4438.9,4438.8,0.7073]
[1757613866628,4.0115,4438.9,4438.8,0.7073]
[1757613867133,3.6048,4438.9,4438.8,0.7073]
[1757613867333,0.17,4438.9,4438.8,0.7073]
[1757613867535,0.397,4438.9,4438.8,0.7073]
[1757613868444,0.6062,4438.9,4438.8,0.7073]
[1757613868937,1.0379,4438.9,4438.8,0.2937]
[1757613869242,4.0277,4438.9,4438.8,0.6933]
[1757613870943,3.814,4438.9,4438.8,0.6933]
[1757613871137,3.6048,4438.9,4438.8,0.6933]
[1757613871938,3.3778,4438.9,4438.8,0.6933]
[1757613872143,0.397,4438.9,4438.8,0.6933]
[1757613873247,0.6062,4438.9,4438.8,0.6933]
[1757613873445,0.397,4438.9,4438.8,0.6933]
[1757613874242,0.17,4438.9,4438.8,0.6933]
[1757613879547,4.0187,4438.9,4438.8,0.2937]
[1757613879846,0.6409,4438.6,4438.5,0.1214]
[1757613880150,0.228,4438.6,4438.5,0.521]
[1757613880448,0.228,4438.6,4438.5,0.8341]
[1757613880642,0.228,4438.7,4438.6,0.7127]
[1757613880844,3.3778,4438.9,4438.7,0.3131]
[1757613881047,0.228,4438.8,4438.7,0.7127]
[1757613881350,0.4372,4438.8,4438.7,0.7127]
[1757613881546,0.6509,4438.8,4438.7,0.7127]
[1757613882048,0.8689,4438.8,4438.7,0.7127]
[1757613882347,0.6509,4438.8,4438.7,0.7127]
[1757613882951,0.8689,4438.8,4438.5,0.1214]
[1757613883143,0.6409,4438.7,4438.6,0.3131]
[1757613883444,0.6409,4438.7,4438.6,0.5069]
[1757613885544,0.6409,4438.7,4438.6,0.3131]
[1757613885750,0.4229,4438.7,4438.6,0.7127]
[1757613887546,0.228,4438.8,4438.6,0.3996]
[1757613887742,0.6509,4438.8,4438.7,0.7127]
[1757613888052,0.6509,4438.8,4438.5,0.4345]
[1757613888253,0.6409,4438.6,4438.5,0.4345]
[1757613888454,0.6409,4438.6,4438.5,0.6283]
[1757613888654,0.4229,4438.6,4438.5,0.8341]
[1757613889459,0.96440891,4438.6,4438.5,0.8341]
[1757613889646,0.54150891,4438.6,4438.5,0.8341]
[1757613889954,0.6499,4438.6,4438.5,0.8341]
[1757613890148,0.97769999,4438.6,4438.5,0.8341]
[1757613890348,0.17,4438.9,4438.8,0.7127]
[1757613890549,0.94026195,4438.9,4438.8,0.7127]
[1757613891060,0.71226195,4438.9,4438.8,0.7127]
[1757613891359,0.94026195,4438.9,4438.8,0.7127]
[1757613892251,0.94026195,4438.9,4438.8,0.99009754]
[1757613893157,1.14946195,4438.9,4438.8,0.99009754]
[1757613894057,1.36316195,4438.9,4438.8,0.99009754]
[1757613895758,1.14946195,4438.9,4438.8,0.99009754]
[1757613903166,0.94026195,4438.9,4438.8,0.99009754]
[1757613905456,1.15286195,4438.9,4438.8,0.99009754]
[1757613906660,0.71226195,4438.9,4438.8,0.99009754]
[1757613909163,0.92486195,4438.9,4438.8,0.99009754]
[1757613909566,0.71226195,4438.9,4438.8,0.99009754]
[1757613910063,0.92569593,4438.9,4438.8,0.99009754]
[1757613910960,0.71309593,4438.9,4438.8,0.99009754]
[1757613913674,12.13856796,4450.2,4439.8,0.7089]
[1757613913675,3.4204,4439.9,4439.8,0.7089]
[1757613913875,4.3859449,4439.9,4439.8,0.98629754]
[1757613914174,4.3859449,4439.9,4439.8,0.7089]
[1757613914670,4.3859449,4439.9,4439.8,0.9882964]
[1757613915172,1.1781449,4439.9,4439.8,0.9882964]
[1757613915372,4.3859449,4439.9,4439.8,0.7089]
[1757613915574,5.59973823,4439.9,4439.8,0.7089]
[1757613916680,5.81813823,4439.9,4439.8,0.5116]
[1757613916979,0.2184,4439.8,4439.6,0.3093]
[1757613917168,0.9511449,4439.7,4439.6,0.3093]
[1757613917473,1.1695449,4439.7,4439.6,0.27924223]
[1757613917678,1.16911235,4439.7,4439.6,0.27924223]
[1757613919881,5.17595236,4439.7,4439.0,0.1164]
[1757613920082,3.2078,4439.1,4439.0,0.1164]
[1757613920381,3.97731235,4439.1,4439.0,0.4257]
[1757613920577,3.97731235,4439.1,4439.0,0.628]
[1757613920970,3.97731235,4439.1,4439.0,0.8253]
[1757613926081,0.76951235,4439.1,4439.0,0.8253]
[1757613926290,0.227,4439.2,4439.0,0.516]
[1757613926486,0.227,4439.2,4439.1,0.7089]
[1757613926989,0.227,4439.2,4439.1,41.5089]
[1757613927391,0.227,4439.2,4439.1,45.5089]
[1757613929490,0.227,4439.5,4439.4,0.4143]
[1757613929792,0.54247772,4439.5,4439.4,0.4143]
[1757613929985,0.54247772,4439.5,4439.4,0.7224]
[1757613930490,0.54247772,4439.5,4439.4,0.5097]
[1757613930695,0.54247772,4439.5,4439.4,0.7224]
[1757613931782,0.54247772,4439.5,4439.4,1.01963667]
[1757613933384,0.227,4439.8,4439.7,0.7224]
[1757613933589,0.76947942,4439.8,4439.7,1.01963667]
[1757613940493,0.76918598,4439.8,4439.7,1.01963667]
[1757613942296,4.99442599,4439.8,4439.7,1e-08]
[1757613942491,0.1826,4439.4,4439.3,0.5097]
[1757613942690,0.95178598,4439.4,4439.3,0.7224]
[1757613943293,0.54218598,4439.4,4439.3,0.7224]
[1757613943493,0.54218598,4439.4,4439.3,4.94766]
[1757613943688,3.4348,4440.0,4439.8,0.4143]
[1757613943897,3.5261,4440.0,4439.9,0.7224]
[1757613944097,4.06832108,4440.0,4439.9,0.7224]
[1757613944396,4.15962108,4440.0,4439.9,0.7224]
[1757613944795,4.15962108,4440.0,4439.9,0.5097]
[1757613946598,0.1826,4439.6,4439.5,0.5327]
[1757613947086,0.1826,4439.6,4439.5,0.8408]
[1757613949895,0.227,4439.7,4439.5,0.8408]
[1757613950098,35.8672,4440.5,4440.4,0.2016]
[1757613950305,36.6361879,4440.5,4440.4,0.7224]
[1757613950491,36.6361879,4440.5,4440.0,0.1184]
[1757613950802,0.2394,4439.7,4439.6,0.3081]
[1757613951095,3.6742,4439.7,4439.6,0.3081]
[1757613951296,4.1591879,4439.7,4439.6,0.5097]
[1757613951494,4.1591879,4439.7,4439.6,0.7224]
[1757613953203,0.0912,4439.1,4439.0,0.318]
[1757613953403,0.0912,4439.1,4439.0,0.8388]
[1757613954304,0.3182,4439.4,4439.3,0.7224]
[1757613954607,0.3182,4439.4,4439.3,1.0160828]
[1757613955694,0.860942,4439.4,4439.3,1.0160828]
[1757613957799,5.008942,4439.4,4439.3,0.5905828]
[1757613957995,5.23420201,4439.4,4438.7,0.2969]
[1757613958195,3.2078,4438.8,4438.7,0.2969]
[1757613958499,5.59593311,4438.8,4438.0,0.4153]
[1757613958701,3.2078,4438.1,4438.0,0.1184]
[1757613958902,5.19274955,4438.1,4438.0,0.72401356]
[1757613959208,3.977542,4438.1,4438.0,0.72401356]
[1757613961008,3.977542,4438.1,4438.0,0.42711356]
[1757613961306,3.977542,4438.1,4438.0,0.4153]
[1757613962501,3.977542,4438.1,4438.0,0.1184]
[1757613962901,7.977542,4438.1,4436.5,3.3296]
[1757613963108,3.2078,4437.6,4437.3,0.2969]
[1757613963300,0.769742,4437.5,4437.3,0.2969]
[1757613963611,0.542742,4437.4,4437.0,0.32]
[1757613963808,0.227,4437.3,4437.2,0.2969]
[1757613964001,0.769742,4437.3,4437.0,0.1218]
[1757613964207,3.2078,4437.1,4436.7,0.2969]
[1757613964399,0.769742,4437.0,4436.5,0.1218]
[1757613964600,3.2078,4436.6,4436.5,0.4187]
[1757613964800,3.977542,4436.6,4436.5,0.4187]
[1757613965302,3.977542,4436.6,4436.5,0.72586935]
[1757613965701,3.4348,4436.6,4436.5,0.4187]
[1757613965897,7.4348,4436.6,4436.5,0.1218]
[1757613966107,7.4348,4436.6,4436.0,0.4187]
[1757613966408,3.2078,4436.1,4436.0,0.4187]
[1757613966607,3.4348,4436.1,4436.0,0.4187]
[1757613968008,3.2078,4436.1,4436.0,0.4187]
[1757613968313,3.4348,4436.1,4436.0,0.4187]
[1757613969209,3.2078,4436.1,4436.0,0.8258]
[1757613969404,3.4348,4436.1,4436.0,0.8258]
[1757613969604,3.2078,4436.6,4436.5,0.8258]
[1757613969806,3.4348,4436.6,4436.5,0.8258]
[1757613972710,3.4348,4436.6,4436.5,0.4187]
[1757613973414,3.4348,4436.6,4436.0,0.4187]
[1757613973803,3.2078,4436.1,4436.0,0.4187]
[1757613974109,3.4348,4436.1,4436.0,0.4187]
[1757613974309,7.4348,4436.1,4435.0,0.1218]
[1757613974617,3.2078,4435.6,4435.5,0.4187]
[1757613974915,3.4348,4435.6,4435.5,0.4187]
[1757613975819,3.4348,4435.6,4435.5,0.72467332]
[1757613976114,3.4348,4435.6,4435.5,0.30597332]
[1757613976316,3.4348,4435.6,4435.1,0.2969]
[1757613976709,3.4348,4435.6,4435.5,0.1218]
[1757613977104,7.66025,4435.6,4435.5,0.1218]
[1757613977315,8.2115452,4435.6,4435.5,0.1218]
[1757613977613,8.2115452,4435.6,4435.2,0.2969]
[1757613977816,7.4348,4435.6,4435.2,0.2969]
[1757613978119,7.66026,4435.6,4435.0,0.1218]
[1757613978420,3.2078,4435.1,4435.0,0.1218]
[1757613978605,3.98598087,4435.1,4435.0,0.1218]
[1757613980313,3.98598087,4435.1,4435.0,0.4187]
[1757613980519,7.98598087,4435.1,4435.0,0.1218]
[1757613981016,7.98598087,4435.1,4435.0,0.4187]
[1757613981205,7.98598087,4435.1,4435.0,0.1218]
[1757613981708,7.98598087,4435.1,4435.0,0.4187]
[1757613985018,3.98598087,4435.1,4435.0,0.8258]
[1757613985424,3.98598087,4435.1,4435.0,0.6169]
[1757613987726,3.98598087,4435.1,4435.0,0.4187]
[1757613988922,3.98598087,4435.1,4435.0,0.73100104]
[1757613994736,3.98598087,4435.1,4435.0,0.93910104]
[1757613995637,3.98598087,4435.1,4435.0,0.73100104]
[1757613996534,3.98598087,4435.1,4435.0,1.14530104]
[1757613997137,3.98598087,4435.1,4435.0,0.93910104]
[1757613999043,3.98598087,4435.1,4435.0,0.73100104]
[1757613999233,3.75898087,4435.1,4435.0,0.73100104]
[1757613999434,3.98598087,4435.1,4435.0,0.73100104]
[1757614000028,3.98852387,4435.1,4435.0,0.73100104]
[1757614000338,3.98852387,4435.1,4433.2,0.22552]
[1757614000339,0.2482,4434.9,4433.2,0.22552]
[1757614000539,3.2078,4433.8,4433.7,0.4143]
[1757614000838,3.98852387,4433.8,4433.7,0.4143]
[1757614001437,4.19442387,4433.8,4433.7,0.4143]
[1757614002229,4.64512387,4433.8,4433.7,0.2081]
[1757614002535,4.64512387,4433.8,4433.7,0.5111]
[1757614003637,5.85676831,4433.8,4433.0,0.1249]
[1757614003837,5.85676831,4433.8,4432.5,3.3327]
[1757614003838,0.6566,4433.2,4433.1,0.303]
[1757614004042,0.6566,4432.9,4432.8,0.37954726]
[1757614004249,1.43732387,4432.9,4432.8,0.37954726]
[1757614004550,1.43732387,4432.9,4432.8,0.68254726]
[1757614005045,1.43732387,4432.9,4432.8,0.17144726]
[1757614005252,1.43732387,4432.9,4432.8,0.3805697]
[1757614005550,1.18912387,4432.9,4432.8,0.5886697]
[1757614006253,1.18912387,4432.9,4432.8,0.7948697]
[1757614007251,1.43732387,4432.9,4432.8,0.5886697]
[1757614007452,1.43732387,4432.9,4432.8,0.3805697]
[1757614007951,1.21032387,4432.9,4432.8,0.5886697]
[1757614008143,1.43732387,4432.9,4432.8,0.5886697]
[1757614008446,2.65093627,4432.9,4432.8,0.3805697]
[1757614008654,1.43732387,4432.9,4432.8,0.0775697]
[1757614011850,1.21032387,4432.9,4432.8,0.0775697]
[1757614012048,1.43732387,4432.9,4432.8,0.0775697]
[1757614012245,1.18912387,4432.9,4432.8,0.89942619]
[1757614012451,1.84721494,4432.9,4432.8,0.89942619]
[1757614012644,0.78072387,4432.9,4432.8,1.10562619]
[1757614012844,1.43652387,4432.9,4432.8,1.10562619]
[1757614013256,1.43652387,4432.9,4432.8,0.69132619]
[1757614013958,1.43652387,4432.9,4432.8,0.89942619]
[1757614014256,1.18912387,4432.9,4432.8,1.10562619]
[1757614015154,1.43652387,4432.9,4432.8,0.89942619]
[1757614015350,1.43652387,4432.9,4432.8,0.5886697]
[1757614015658,1.18912387,4432.9,4432.8,0.5886697]
[1757614015957,1.18912387,4432.9,4432.8,0.7948697]
[1757614016358,0.98662387,4432.9,4432.8,0.7948697]
[1757614016547,0.98662387,4432.9,4432.8,1.10544989]
[1757614016960,2.71192387,4433.1,4433.0,0.8422]
[1757614017153,2.93892387,4433.1,4433.0,1.15278019]
[1757614017353,2.93992387,4433.1,4433.0,1.37836018]
[1757614017652,2.93992387,4433.1,4433.0,1.36736018]
[1757614017653,0.228,4433.1,4433.0,1.36736018]
[1757614017956,3.2078,4433.8,4433.7,0.6967]
[1757614018256,3.6421,4433.8,4433.7,1.00728019]
[1757614018456,3.837,4433.8,4433.7,1.00728019]
[1757614018859,3.4358,4433.8,4433.7,5.00728019]
[1757614020454,3.2078,4433.8,4433.7,5.00728019]
[1757614020661,3.2078,4434.4,4434.3,0.6967]
[1757614020849,0.4343,4434.4,4434.3,1.00728019]
[1757614021360,0.6292,4434.4,4434.3,1.00728019]
[1757614023465,0.8772,4434.4,4434.3,1.00728019]
[1757614023660,4.085,4434.4,4434.0,0.1222]
[1757614023866,4.085,4434.4,4434.1,0.30726242]
[1757614024162,0.4012,4434.3,4434.2,0.4941]
[1757614024364,0.6492,4434.3,4434.2,0.4941]
[1757614024666,0.6492,4434.3,4434.2,0.292]
[1757614025066,0.248,4434.2,4433.6,0.292]
[1757614025372,0.6492,4433.7,4433.6,0.4941]
[1757614025562,0.8772,4433.7,4433.6,0.8014345]
[1757614025763,0.8772,4433.7,4433.1,0.292]
[1757614025963,0.228,4433.7,4433.2,0.30733934]
[1757614026164,0.4012,4433.5,4433.4,0.292]
[1757614026359,0.4012,4433.5,4433.4,1.00403934]
[1757614026964,0.4343,4433.7,4433.6,0.6967]
[1757614027776,0.228,4433.7,4433.6,1.00412413]
[1757614028362,0.4343,4433.7,4433.6,1.00412413]
[1757614028874,0.98201552,4433.7,4433.6,1.00412413]